Workbook

Sheet MSU
B1: Juhani Harju | E1: 9.8.1975
B2: SUPERPESIS | E2: Runkosarja | I2: Kärkilyönnit (KL), pesänvälit | P2: Ylempi loppusarja | W2: Alempi loppusarja | AD2: Arvo-ottelut | AH2: Mitalit
B3: Vuosi | C3: Sija | D3: Seura | E3: OTT | F3: KUN | G3: LÖI | H3: TOI | I3: KL | J3: 0 > 1 | K3: 1 > 2 | L3: 2 > 3 | M3: 3 > k | N3: KL-% | P3: OTT | Q3: KUN | R3: LÖI | S3: TOI | T3: KL | U3: KL-% | W3: OTT | X3: KUN | Y3: LÖI | Z3: TOI | AA3: KL | AB3: KL-% | AD3: IL | AE3: LL | AF3: hSM | AG3: K | AH3: H | AI3: P
B4: 1994 | C4: 14. | D4: MuPS | E4: 0 | F4: 0 | G4: 0 | H4: 0 | I4: 0 | J4: 0 | K4: 0 | L4: 0 | M4: 0 | N4: ---- | W4: 1 | X4: 0 | Y4: 0 | Z4: 1 | AA4: 3 | AB4: 50.0 %
B5: 1995 | C5: 4. | D5: MuPS | F5: ykköspesis
B6: 1996 | C6: 8. | D6: MuPS | F6: ykköspesis
B7: 1997 | C7: 3. | D7: MuPS | F7: ykköspesis
B8: 1998 | C8: 12. | D8: MuPS 2 | F8: suomensarja
B9: 1999 | C9: 5. | D9: MuPS | F9: ykköspesis
B10: 2000
B11: 2001 | D11: MuPS | F11: suomensarja
B12: 2002
B13: 2003
B14: 2004
B15: 2005
B16: 2006
B17: 2007 | D17: MuPS | F17: suomensarja
B18: Yhteensä | E18: 0 | F18: 0 | G18: 0 | H18: 0 | I18: 0 | J18: 0 | K18: 0 | L18: 0 | M18: 0 | P18: 0 | Q18: 0 | R18: 0 | S18: 0 | T18: 0 | U18: 0.0 % | W18: 1 | X18: 0 | Y18: 0 | Z18: 1 | AA18: 3 | AB18: 50.0 % | AD18: 0 | AE18: 0 | AF18: 0 | AG18: 0 | AH18: 0 | AI18: 0
B19: Pesispörssi | D19: 0.0
B21: URA SUPERISSA | E21: OTT | F21: KUN | G21: LÖI | H21: TOI | I21: KL | K21: ka/L | L21: ka/T | M21: ka/KL | N21: KL-% | P21: ENSIMMÄISET RUNKOSARJASSA
B22: Runkosarja | P22: Ottelu
B23: Ylempi loppusarja | P23: Lyöty
B24: Alempi loppusarja | E24: 1 | F24: 0 | G24: 0 | H24: 1 | I24: 3 | K24: 0.00 | L24: 1.00 | M24: 3.00 | N24: 50.0 % | P24: Tuotu
B25: KAIKKI | E25: 1 | F25: 0 | G25: 0 | H25: 1 | I25: 3 | K25: 0.00 | L25: 1.00 | M25: 3.00 | N25: 50.0 % | P25: Kunnari
B27: Seurat | D27: MuPS = Muhoksen Pallo-Salamat (1969)

Sheet MYP, MSS
B1: Juhani Harju | E1: 9.8.1975
B2: YKKÖSPESIS | E2: Runkosarja | L2: Runkosarja TOP-10 | Q2: Jatkosarjat | X2: SUOMENSARJA | AA2: Runkosarja | AH2: Runkosarja TOP-10 | AM2: Jatkosarjat
B3: Vuosi | C3: Sija | D3: Seura | E3: OTT | F3: KUN | G3: LÖI | H3: TOI | I3: KL | J3: KL-% | L3: LÖI | M3: TOI | N3: L+T | O3: KL | Q3: OTT | R3: KUN | S3: LÖI | T3: TOI | U3: KL | V3: KL-% | X3: Vuosi | Y3: Sija | Z3: Seura | AA3: OTT | AB3: KUN | AC3: LÖI | AD3: TOI | AE3: KL | AF3: KL-% | AH3: LÖI | AI3: TOI | AJ3: L+T | AK3: KL | AM3: OTT | AN3: KUN | AO3: LÖI | AP3: TOI | AQ3: KL | AR3: KL-%
B4: 1995 | C4: 4. | D4: MuPS | E4: 8 | F4: 0 | G4: 0 | H4: 1 | I4: 8
B5: 1996 | C5: 8. | D5: MuPS | E5: 3 | F5: 0 | G5: 0 | H5: 1 | I5: 1
B6: 1997 | C6: 3. | D6: MuPS | E6: 17 | F6: 0 | G6: 3 | H6: 2 | I6: 22
X7: 1998 | Y7: 12. | Z7: MuPS 2
B8: 1999 | C8: 5. | D8: MuPS
B9: 2000 | C9: 14. | D9: MuPS | E9: 22 | F9: 0 | G9: 7 | H9: 5 | I9: 45 | J9: 35.4 % | Q9: 14 | R9: 0 | S9: 4 | T9: 0 | U9: 20
X10: 2001 | Y10: 4. | Z10: MuPS | AA10: 15 | AB10: 0 | AC10: 3 | AD10: 9 | AE10: 41 | AF10: 55.4 % | AG10: 74 | AM10: 2 | AN10: 0 | AO10: 0 | AP10: 0 | AQ10: 6 | AR10: 37.5 % | AS10: 16
X12: 2007 | Y12: 2. | Z12: MuPS | AA12: 1 | AB12: 0 | AC12: 0 | AD12: 0 | AE12: 4 | AF12: 57.1 % | AG12: 7
B13: YHTEENSÄ | E13: =SUM(E4:E12) -> 50 | F13: =SUM(F4:F12) -> 0 | G13: =SUM(G4:G12) -> 10 | H13: =SUM(H4:H12) -> 9 | I13: =SUM(I4:I12) -> 76 | K13: =SUM(K4:K12) -> 0 | Q13: =SUM(Q4:Q12) -> 14 | R13: =SUM(R4:R12) -> 0 | S13: =SUM(S4:S12) -> 4 | T13: =SUM(T4:T12) -> 0 | U13: =SUM(U4:U12) -> 20 | V13: 0.0 % | W13: =SUM(W4:W12) -> 0 | X13: YHTEENSÄ | AA13: =SUM(AA4:AA12) -> 16 | AB13: =SUM(AB4:AB12) -> 0 | AC13: =SUM(AC4:AC12) -> 3 | AD13: =SUM(AD4:AD12) -> 9 | AE13: =SUM(AE4:AE12) -> 45 | AF13: =PRODUCT(AE13/AG13) -> 55.6 % | AG13: =SUM(AG4:AG12) -> 81 | AM13: =SUM(AM4:AM12) -> 2 | AN13: =SUM(AN4:AN12) -> 0 | AO13: =SUM(AO4:AO12) -> 0 | AP13: =SUM(AP4:AP12) -> 0 | AQ13: =SUM(AQ4:AQ12) -> 6 | AR13: =PRODUCT(AQ13/AS13) -> 37.5 % | AS13: =SUM(AS4:AS12) -> 16
B15: KAIKKI OTTELUT | E15: OTT | F15: KUN | G15: LÖI | H15: TOI | I15: KL | J15: KL-% | L15: ka/L | M15: ka/T | N15: ka/l+t | O15: ka/kl | R15: Seurat | T15: MuPS = Muhoksen Pallo-Salamat (1969)
B16: SUPERPESIS | E16: 1 | F16: 0 | G16: 0 | H16: 1 | I16: 3 | J16: 50.0 % | K16: =PRODUCT(I16/J16) -> 6 | L16: =PRODUCT((F16+G16)/E16) -> 0.00 | M16: =PRODUCT(H16/E16) -> 1.00 | N16: =PRODUCT((F16+G16+H16)/E16) -> 1.00 | O16: =PRODUCT(I16/E16) -> 3.00
B17: YKKÖSPESIS | E17: =PRODUCT(E13+Q13) -> 64 | F17: =PRODUCT(F13+R13) -> 0 | G17: =PRODUCT(G13+S13) -> 14 | H17: =PRODUCT(H13+T13) -> 9 | I17: =PRODUCT(I13+U13) -> 96 | L17: =PRODUCT((F17+G17)/E17) -> 0.22 | M17: =PRODUCT(H17/E17) -> 0.14 | N17: =PRODUCT((F17+G17+H17)/E17) -> 0.36 | O17: =PRODUCT(I17/E17) -> 1.50
B18: SUOMENSARJA | E18: =PRODUCT(AA13+AM13) -> 18 | F18: =PRODUCT(AB13+AN13) -> 0 | G18: =PRODUCT(AC13+AO13) -> 3 | H18: =PRODUCT(AD13+AP13) -> 9 | I18: =PRODUCT(AE13+AQ13) -> 51 | J18: =PRODUCT(I18/K18) -> 52.6 % | K18: =PRODUCT(AG13+AS13) -> 97 | L18: =PRODUCT((F18+G18)/E18) -> 0.17 | M18: =PRODUCT(H18/E18) -> 0.50 | N18: =PRODUCT((F18+G18+H18)/E18) -> 0.67 | O18: =PRODUCT(I18/E18) -> 2.83
B19: YHTEENSÄ | E19: =SUM(E16:E18) -> 83 | F19: =SUM(F16:F18) -> 0 | G19: 17 | H19: 19 | I19: 150 | K19: =SUM(K16:K18) -> 103 | L19: =PRODUCT((F19+G19)/E19) -> 0.20 | M19: =PRODUCT(H19/E19) -> 0.23 | N19: =PRODUCT((F19+G19+H19)/E19) -> 0.43 | O19: =PRODUCT(I19/E19) -> 1.81
